[Event "*** Titled Tuesday Blitz"]
[Site "Chess.com"]
[Date "2020.11.24"]
[Round "5"]
[White "hermionegrangermagic"]
[Black "Shankland"]
[Result "0-1"]
[WhiteElo "2590"]
[BlackElo "2895"]
[TimeControl "180+1"]
[EndTime "11:10:20 PST"]
[Termination "Shankland won by resignation"]

1. e4 {[%clk 0:03:00.9]} 1... c6 {[%clk 0:02:59.8]} 2. d4 {[%clk 0:03:00.4]}
2... d5 {[%clk 0:03:00.4]} 3. exd5 {[%clk 0:03:00.6]} 3... cxd5 {[%clk
0:03:00.4]} 4. c4 {[%clk 0:03:01.1]} 4... Nf6 {[%clk 0:02:59.8]} 5. Nc3 {[%clk
0:03:01.1]} 5... g6 {[%clk 0:03:00.2]} 6. Qb3 {[%clk 0:03:00.2]} 6... Bg7 {[%clk
0:03:00.2]} 7. cxd5 {[%clk 0:03:00.4]} 7... O-O {[%clk 0:03:00.1]} 8. g3 {[%clk
0:03:00.4]} 8... e6 {[%clk 0:02:55.9]} 9. d6 {[%clk 0:02:52.5]} 9... Nc6 {[%clk
0:02:42.9]} 10. Nge2 {[%clk 0:02:40.1]} 10... Qxd6 {[%clk 0:02:40.9]} 11. Be3
{[%clk 0:02:24.8]} 11... Bd7 {[%clk 0:02:26.4]} 12. Bg2 {[%clk 0:02:19.5]} 12...
Na5 {[%clk 0:02:26]} 13. Qc2 {[%clk 0:02:12.5]} 13... Bc6 {[%clk 0:02:22.4]} 14.
O-O {[%clk 0:02:03.6]} 14... Rac8 {[%clk 0:02:22.3]} 15. Rfd1 {[%clk 0:01:46.8]}
15... Bxg2 {[%clk 0:02:20.2]} 16. Kxg2 {[%clk 0:01:46.5]} 16... Nd5 {[%clk
0:02:18.5]} 17. Nf4 {[%clk 0:01:25.2]} 17... Nxe3+ {[%clk 0:02:06.9]} 18. fxe3
{[%clk 0:01:23.8]} 18... Nc4 {[%clk 0:02:07.6]} 19. Qe2 {[%clk 0:01:05.9]} 19...
e5 {[%clk 0:02:06.9]} 20. Nfd5 {[%clk 0:01:00]} 20... exd4 {[%clk 0:02:04]} 21.
exd4 {[%clk 0:01:00.1]} 21... Rfe8 {[%clk 0:02:04.4]} 22. Qf2 {[%clk 0:00:54]}
22... b5 {[%clk 0:01:59.8]} 23. a3 {[%clk 0:00:49.4]} 23... a5 {[%clk
0:01:53.3]} 24. Rf1 {[%clk 0:00:41.2]} 24... f5 {[%clk 0:01:51.7]} 25. b3 {[%clk
0:00:28.2]} 25... Ne3+ {[%clk 0:01:45.8]} 26. Nxe3 {[%clk 0:00:27.8]} 26... Rxc3
{[%clk 0:01:46.4]} 27. Nc2 {[%clk 0:00:16.3]} 27... Qc6+ {[%clk 0:01:44.8]} 28.
d5 {[%clk 0:00:15.7]} 28... Qxd5+ {[%clk 0:01:42.6]} 29. Kh3 {[%clk 0:00:14.4]}
29... f4 {[%clk 0:01:31.2]} 30. Rad1 {[%clk 0:00:09.7]} 30... Qf5+ {[%clk
0:01:30.5]} 31. Kg2 {[%clk 0:00:07]} 31... Rxc2 {[%clk 0:01:30.8]} 32. Rd2
{[%clk 0:00:07.5]} 32... Rxd2 {[%clk 0:01:25.8]} 33. Qxd2 {[%clk 0:00:08.4]}
33... Qe4+ {[%clk 0:01:25.2]} 0-1

[Event "*** Titled Tuesday Blitz"]
[Site "Chess.com"]
[Date "2020.11.24"]
[Round "5"]
[White "No_t_ime_to_die"]
[Black "PawnEatingZombie"]
[Result "1-0"]
[WhiteElo "2420"]
[BlackElo "2256"]
[TimeControl "180+1"]
[EndTime "11:10:20 PST"]
[Termination "No_t_ime_to_die won on time"]

1. e4 {[%clk 0:03:00.9]} 1... c6 {[%clk 0:02:59.9]} 2. d4 {[%clk 0:03:00.5]}
2... d5 {[%clk 0:03:00.8]} 3. f3 {[%clk 0:03:01.4]} 3... Qb6 {[%clk 0:02:59.6]}
4. Nc3 {[%clk 0:03:00.9]} 4... dxe4 {[%clk 0:02:58.6]} 5. fxe4 {[%clk
0:03:01.8]} 5... e5 {[%clk 0:02:58.3]} 6. Nf3 {[%clk 0:03:02.4]} 6... exd4
{[%clk 0:02:57.6]} 7. Nxd4 {[%clk 0:03:03.3]} 7... Nf6 {[%clk 0:02:56.6]} 8. e5
{[%clk 0:02:55.3]} 8... Ng4 {[%clk 0:02:55.8]} 9. Bf4 {[%clk 0:02:51.5]} 9...
Qxb2 {[%clk 0:02:17.1]} 10. Ne4 {[%clk 0:02:30.2]} 10... Bb4+ {[%clk 0:02:08.7]}
11. Ke2 {[%clk 0:02:27.9]} 11... O-O {[%clk 0:01:26]} 12. Rb1 {[%clk 0:02:27.4]}
12... Qa3 {[%clk 0:01:25.3]} 13. Qd3 {[%clk 0:02:26.8]} 13... Nd7 {[%clk
0:01:03.9]} 14. e6 {[%clk 0:02:14.7]} 14... Nde5 {[%clk 0:00:52]} 15. Qxa3
{[%clk 0:02:07.5]} 15... Bxa3 {[%clk 0:00:50.6]} 16. Rb3 {[%clk 0:02:08.1]}
16... Be7 {[%clk 0:00:25.3]} 17. Nf5 {[%clk 0:02:07.7]} 17... Bf6 {[%clk
0:00:25.3]} 18. h3 {[%clk 0:01:54.7]} 18... Bxe6 {[%clk 0:00:12.8]} 19. hxg4
{[%clk 0:01:54.4]} 19... Bxb3 {[%clk 0:00:11.6]} 20. axb3 {[%clk 0:01:55.3]}
20... Ng6 {[%clk 0:00:07.6]} 21. Nxf6+ {[%clk 0:01:51.8]} 21... gxf6 {[%clk
0:00:07.5]} 22. Bd6 {[%clk 0:01:50.1]} 22... Rfe8+ {[%clk 0:00:07.2]} 23. Kf2
{[%clk 0:01:50.2]} 23... Rad8 {[%clk 0:00:06.2]} 24. Bd3 {[%clk 0:01:50.6]}
24... Re6 {[%clk 0:00:02.4]} 25. Bc5 {[%clk 0:01:46.2]} 25... Ne5 {[%clk
0:00:02.4]} 26. Nh6+ {[%clk 0:01:39.8]} 26... Kg7 {[%clk 0:00:02.1]} 27. Bxh7
{[%clk 0:01:35.6]} 27... Kxh7 {[%clk 0:00:01.8]} 28. Nxf7+ {[%clk 0:01:35.7]}
28... Kg7 {[%clk 0:00:02.1]} 29. Nxd8 {[%clk 0:01:36.2]} 29... Nxg4+ {[%clk
0:00:02.1]} 30. Kg3 {[%clk 0:01:36.4]} 30... Re5 {[%clk 0:00:02.5]} 31. Kxg4
{[%clk 0:01:35.6]} 31... Rxc5 {[%clk 0:00:02.8]} 32. Ne6+ {[%clk 0:01:36.2]} 1-0

[Event "*** Titled Tuesday Blitz"]
[Site "Chess.com"]
[Date "2020.11.24"]
[Round "5"]
[White "Lestofante90"]
[Black "IrishMonkey"]
[Result "1-0"]
[WhiteElo "2804"]
[BlackElo "2564"]
[TimeControl "180+1"]
[EndTime "11:10:26 PST"]
[Termination "Lestofante90 won by resignation"]

1. e4 {[%clk 0:03:00.9]} 1... e5 {[%clk 0:02:57.9]} 2. Nf3 {[%clk 0:03:00.7]}
2... Nc6 {[%clk 0:02:57.5]} 3. Bb5 {[%clk 0:03:01.4]} 3... Nf6 {[%clk 0:02:56]}
4. d3 {[%clk 0:03:01]} 4... Bc5 {[%clk 0:02:52.4]} 5. c3 {[%clk 0:03:01.3]} 5...
d6 {[%clk 0:02:48.8]} 6. O-O {[%clk 0:03:00.7]} 6... O-O {[%clk 0:02:46.7]} 7.
Nbd2 {[%clk 0:03:00.1]} 7... Be6 {[%clk 0:02:43.2]} 8. Re1 {[%clk 0:02:55.9]}
8... a6 {[%clk 0:02:39.5]} 9. Ba4 {[%clk 0:02:55.7]} 9... b5 {[%clk 0:02:31.2]}
10. Bc2 {[%clk 0:02:54.5]} 10... Ng4 {[%clk 0:02:26]} 11. Re2 {[%clk 0:02:52]}
11... Bxf2+ {[%clk 0:02:18]} 12. Rxf2 {[%clk 0:02:49.5]} 12... Ne3 {[%clk
0:02:18.6]} 13. Qe2 {[%clk 0:02:47.1]} 13... Nxc2 {[%clk 0:02:18.8]} 14. Rb1
{[%clk 0:02:44.4]} 14... Bxa2 {[%clk 0:02:19.5]} 15. b3 {[%clk 0:02:34.9]} 15...
N2d4 {[%clk 0:02:15.1]} 16. cxd4 {[%clk 0:02:31.5]} 16... Bxb1 {[%clk
0:02:15.7]} 17. d5 {[%clk 0:02:23]} 17... Bc2 {[%clk 0:02:10.6]} 18. dxc6 {[%clk
0:02:19]} 18... Qe8 {[%clk 0:02:11.3]} 19. d4 {[%clk 0:02:05.3]} 19... f6 {[%clk
0:02:07.2]} 20. d5 {[%clk 0:01:58.9]} 20... Qh5 {[%clk 0:01:55.8]} 21. Nf1
{[%clk 0:01:28.6]} 21... Bxb3 {[%clk 0:01:52.5]} 22. Ng3 {[%clk 0:01:29.1]}
22... Qg4 {[%clk 0:01:46.8]} 23. Nf5 {[%clk 0:01:26.8]} 23... Rab8 {[%clk
0:01:42.1]} 24. h3 {[%clk 0:01:25.1]} 24... Qh5 {[%clk 0:01:38.2]} 25. g4 {[%clk
0:01:23.8]} 25... Qe8 {[%clk 0:01:33.7]} 26. h4 {[%clk 0:01:23]} 26... h5 {[%clk
0:01:28.4]} 27. gxh5 {[%clk 0:01:21.4]} 27... Rf7 {[%clk 0:01:28.6]} 28. Rg2
{[%clk 0:01:18.8]} 28... Bc4 {[%clk 0:01:27.9]} 29. Qe3 {[%clk 0:01:17.4]} 29...
Qd8 {[%clk 0:01:28.2]} 30. Nxg7 {[%clk 0:01:10.7]} 30... Rxg7 {[%clk 0:01:14.4]}
31. Rxg7+ {[%clk 0:01:10.1]} 31... Kxg7 {[%clk 0:01:14.9]} 32. Qh6+ {[%clk
0:01:10.7]} 32... Kg8 {[%clk 0:01:15.3]} 33. Qg6+ {[%clk 0:01:09.1]} 33... Kh8
{[%clk 0:01:09.4]} 34. Bg5 {[%clk 0:00:49.4]} 34... fxg5 {[%clk 0:00:59.6]} 35.
Nxg5 {[%clk 0:00:50.3]} 35... Qe7 {[%clk 0:01:00.1]} 36. Nf7+ {[%clk 0:00:50.1]}
1-0

[Event "*** Titled Tuesday Blitz"]
[Site "Chess.com"]
[Date "2020.11.24"]
[Round "5"]
[White "Nara_Kh"]
[Black "BebeBonito2022"]
[Result "1/2-1/2"]
[WhiteElo "2377"]
[BlackElo "2107"]
[TimeControl "180+1"]
[EndTime "11:10:28 PST"]
[Termination "Game drawn by repetition"]

1. e4 {[%clk 0:03:00.7]} 1... e5 {[%clk 0:02:59.9]} 2. Nf3 {[%clk 0:02:59.7]}
2... Nc6 {[%clk 0:03:00.1]} 3. Bb5 {[%clk 0:02:59]} 3... a6 {[%clk 0:03:00.4]}
4. Ba4 {[%clk 0:02:59.1]} 4... Nf6 {[%clk 0:03:00.5]} 5. O-O {[%clk 0:02:58.7]}
5... b5 {[%clk 0:03:00.7]} 6. Bb3 {[%clk 0:02:58.8]} 6... Be7 {[%clk 0:03:01.4]}
7. d3 {[%clk 0:02:58.4]} 7... d6 {[%clk 0:03:00.9]} 8. a4 {[%clk 0:02:58]} 8...
Na5 {[%clk 0:02:39.9]} 9. Ba2 {[%clk 0:02:55]} 9... Be6 {[%clk 0:02:28.9]} 10.
Bxe6 {[%clk 0:02:45.3]} 10... fxe6 {[%clk 0:02:29.8]} 11. Ng5 {[%clk 0:02:45.2]}
11... Qd7 {[%clk 0:02:26.6]} 12. b4 {[%clk 0:02:45]} 12... h6 {[%clk 0:02:19.4]}
13. bxa5 {[%clk 0:02:38.6]} 13... hxg5 {[%clk 0:02:18.4]} 14. Bxg5 {[%clk
0:02:38.5]} 14... bxa4 {[%clk 0:02:10.8]} 15. Nc3 {[%clk 0:02:36.8]} 15... O-O
{[%clk 0:02:09.2]} 16. Nxa4 {[%clk 0:02:30.5]} 16... Rab8 {[%clk 0:02:00.2]} 17.
c4 {[%clk 0:02:18.6]} 17... Rb4 {[%clk 0:01:49.5]} 18. Bd2 {[%clk 0:02:05.3]}
18... Rb7 {[%clk 0:01:41]} 19. f4 {[%clk 0:01:31.3]} 19... Rfb8 {[%clk
0:01:26.3]} 20. fxe5 {[%clk 0:01:24.2]} 20... dxe5 {[%clk 0:01:26.3]} 21. Bg5
{[%clk 0:01:23.8]} 21... Rb3 {[%clk 0:01:24.3]} 22. Bxf6 {[%clk 0:01:19.4]}
22... Bxf6 {[%clk 0:01:24.1]} 23. Qg4 {[%clk 0:01:11.4]} 23... Qxd3 {[%clk
0:01:14.6]} 24. Kh1 {[%clk 0:01:06.5]} 24... Rb1 {[%clk 0:01:07.6]} 25. Qxe6+
{[%clk 0:01:03.2]} 25... Kh8 {[%clk 0:01:05.9]} 26. Raxb1 {[%clk 0:00:35]} 26...
Rxb1 {[%clk 0:01:02.6]} 27. Qe8+ {[%clk 0:00:34.8]} 27... Kh7 {[%clk 0:01:02.1]}
28. Qh5+ {[%clk 0:00:35.4]} 28... Kg8 {[%clk 0:01:01.9]} 29. Qe8+ {[%clk
0:00:34.7]} 29... Kh7 {[%clk 0:01:02]} 30. Qh5+ {[%clk 0:00:35.6]} 30... Kg8
{[%clk 0:01:01.9]} 31. Qe8+ {[%clk 0:00:35.6]} 31... Kh7 {[%clk 0:01:00.7]}
1/2-1/2

[Event "*** Titled Tuesday Blitz"]
[Site "Chess.com"]
[Date "2020.11.24"]
[Round "5"]
[White "szachuspl"]
[Black "Training_Day"]
[Result "1-0"]
[WhiteElo "2499"]
[BlackElo "2345"]
[TimeControl "180+1"]
[EndTime "11:10:30 PST"]
[Termination "szachuspl won by resignation"]

1. d4 {[%clk 0:03:00.9]} 1... d5 {[%clk 0:02:57.6]} 2. c4 {[%clk 0:03:00.1]}
2... c6 {[%clk 0:02:57.4]} 3. Nf3 {[%clk 0:02:59.4]} 3... Nf6 {[%clk 0:02:56.8]}
4. e3 {[%clk 0:02:59.3]} 4... Bg4 {[%clk 0:02:53]} 5. Nbd2 {[%clk 0:02:57.8]}
5... e6 {[%clk 0:02:51.2]} 6. Qb3 {[%clk 0:02:57.6]} 6... Qb6 {[%clk 0:02:48.7]}
7. Bd3 {[%clk 0:02:57.7]} 7... Nbd7 {[%clk 0:02:41.2]} 8. O-O {[%clk 0:02:57.3]}
8... Qxb3 {[%clk 0:02:33]} 9. axb3 {[%clk 0:02:57.1]} 9... a6 {[%clk 0:02:33.2]}
10. h3 {[%clk 0:02:54.9]} 10... Bxf3 {[%clk 0:02:30.4]} 11. gxf3 {[%clk
0:02:52.5]} 11... Bd6 {[%clk 0:02:20.9]} 12. e4 {[%clk 0:02:52.3]} 12... e5
{[%clk 0:02:08.8]} 13. f4 {[%clk 0:02:42.6]} 13... dxe4 {[%clk 0:02:03.2]} 14.
fxe5 {[%clk 0:02:38.4]} 14... exd3 {[%clk 0:01:59.7]} 15. exd6 {[%clk
0:02:37.9]} 15... O-O-O {[%clk 0:01:47.1]} 16. Nf3 {[%clk 0:02:34.5]} 16... Ne4
{[%clk 0:01:27.4]} 17. Bf4 {[%clk 0:02:24.7]} 17... c5 {[%clk 0:01:22.4]} 18. b4
{[%clk 0:02:20.3]} 18... cxb4 {[%clk 0:01:13.6]} 19. Rfd1 {[%clk 0:02:17.6]}
19... Nb6 {[%clk 0:00:56.6]} 20. Rxd3 {[%clk 0:02:17.2]} 20... Nxc4 {[%clk
0:00:25.3]} 21. Rc1 {[%clk 0:02:16.4]} 21... b5 {[%clk 0:00:24.6]} 22. b3 {[%clk
0:02:13.6]} 22... Nxd6 {[%clk 0:00:23.5]} 23. Bxd6 {[%clk 0:02:11.8]} 23... Rxd6
{[%clk 0:00:23.2]} 24. bxc4 {[%clk 0:02:11.9]} 24... bxc4 {[%clk 0:00:23.2]} 25.
Rxc4+ {[%clk 0:02:12.4]} 25... Kb7 {[%clk 0:00:16.5]} 26. Rxb4+ {[%clk
0:02:12.6]} 26... Rb6 {[%clk 0:00:16.7]} 27. Rdb3 {[%clk 0:02:12.6]} 27... Rxb4
{[%clk 0:00:16.2]} 28. Rxb4+ {[%clk 0:02:13.5]} 28... Kc7 {[%clk 0:00:15.5]} 29.
Kf1 {[%clk 0:02:13.4]} 29... f6 {[%clk 0:00:15]} 30. Ke2 {[%clk 0:02:13.6]}
30... a5 {[%clk 0:00:11.7]} 31. Rb1 {[%clk 0:02:13.2]} 31... a4 {[%clk
0:00:10.9]} 32. Kd3 {[%clk 0:02:12.9]} 32... Ra8 {[%clk 0:00:08.7]} 33. Nd2
{[%clk 0:02:12.6]} 33... Kd6 {[%clk 0:00:07.9]} 34. Ra1 {[%clk 0:02:12.6]} 34...
Ke6 {[%clk 0:00:07.5]} 35. Nc4 {[%clk 0:02:12.2]} 35... Kf5 {[%clk 0:00:07.6]}
36. Nb6 {[%clk 0:02:11.3]} 36... Ra6 {[%clk 0:00:06.8]} 37. Nxa4 {[%clk
0:02:10.9]} 37... Kf4 {[%clk 0:00:06.4]} 38. Kc4 {[%clk 0:02:08.8]} 38... Kf3
{[%clk 0:00:04.9]} 39. Ra2 {[%clk 0:02:09.2]} 39... Rc6+ {[%clk 0:00:02.9]} 40.
Kd3 {[%clk 0:02:07]} 40... Rc1 {[%clk 0:00:03.8]} 41. Nc3 {[%clk 0:02:05.6]}
41... Rh1 {[%clk 0:00:02.9]} 42. d5 {[%clk 0:02:05]} 42... Rxh3 {[%clk
0:00:03.4]} 43. Kd4 {[%clk 0:02:05.4]} 43... Rh4+ {[%clk 0:00:01.4]} 44. Kc5
{[%clk 0:02:05.6]} 44... Rh5 {[%clk 0:00:01.9]} 45. Kc6 {[%clk 0:02:05.1]} 45...
g5 {[%clk 0:00:01.5]} 46. d6 {[%clk 0:02:05.2]} 46... g4 {[%clk 0:00:02.3]} 47.
d7 {[%clk 0:02:05.4]} 1-0

[Event "*** Titled Tuesday Blitz"]
[Site "Chess.com"]
[Date "2020.11.24"]
[Round "5"]
[White "Zajdanek"]
[Black "JiiHart"]
[Result "0-1"]
[WhiteElo "2307"]
[BlackElo "2082"]
[TimeControl "180+1"]
[EndTime "11:10:31 PST"]
[Termination "JiiHart won by checkmate"]

1. e4 {[%clk 0:02:58.8]} 1... c5 {[%clk 0:02:59.8]} 2. Nc3 {[%clk 0:02:58.2]}
2... Nc6 {[%clk 0:02:59.6]} 3. f4 {[%clk 0:02:58.4]} 3... e6 {[%clk 0:02:58.4]}
4. Bc4 {[%clk 0:02:57.4]} 4... a6 {[%clk 0:02:55.4]} 5. a4 {[%clk 0:02:57.4]}
5... d6 {[%clk 0:02:42.1]} 6. Nf3 {[%clk 0:02:56.6]} 6... Nf6 {[%clk 0:02:40.7]}
7. d3 {[%clk 0:02:56.9]} 7... d5 {[%clk 0:02:39.4]} 8. Bb3 {[%clk 0:02:55.3]}
8... dxe4 {[%clk 0:02:38.2]} 9. dxe4 {[%clk 0:02:53.8]} 9... Qxd1+ {[%clk
0:02:37.4]} 10. Kxd1 {[%clk 0:02:54.4]} 10... Be7 {[%clk 0:02:34.9]} 11. e5
{[%clk 0:02:53.7]} 11... Ng4 {[%clk 0:02:29]} 12. Ke2 {[%clk 0:02:50.2]} 12...
Bd7 {[%clk 0:02:22.1]} 13. h3 {[%clk 0:02:50.2]} 13... Nh6 {[%clk 0:02:21.2]}
14. g4 {[%clk 0:02:50.8]} 14... O-O-O {[%clk 0:02:21.1]} 15. Be3 {[%clk
0:02:48.8]} 15... f6 {[%clk 0:02:08.7]} 16. exf6 {[%clk 0:02:49.1]} 16... gxf6
{[%clk 0:02:03.3]} 17. Ne4 {[%clk 0:02:49.2]} 17... b6 {[%clk 0:01:51.8]} 18. a5
{[%clk 0:02:48.8]} 18... Nxa5 {[%clk 0:01:48.6]} 19. Nxc5 {[%clk 0:02:36]} 19...
Bxc5 {[%clk 0:01:44.3]} 20. Bxc5 {[%clk 0:02:35.1]} 20... Nxb3 {[%clk
0:01:44.1]} 21. cxb3 {[%clk 0:02:30.9]} 21... bxc5 {[%clk 0:01:43.7]} 22. Rhc1
{[%clk 0:02:31.1]} 22... Bb5+ {[%clk 0:01:41.7]} 23. Kf2 {[%clk 0:02:30.1]}
23... Rd5 {[%clk 0:01:32.7]} 24. b4 {[%clk 0:02:29.9]} 24... Kb7 {[%clk
0:01:29]} 25. bxc5 {[%clk 0:02:29.7]} 25... Rc8 {[%clk 0:01:21.3]} 26. b4 {[%clk
0:02:29.6]} 26... e5 {[%clk 0:01:21.7]} 27. fxe5 {[%clk 0:02:26.3]} 27... fxe5
{[%clk 0:01:21.6]} 28. Re1 {[%clk 0:02:27.2]} 28... Nf7 {[%clk 0:01:17.7]} 29.
Re4 {[%clk 0:02:22.3]} 29... Bc6 {[%clk 0:01:12.8]} 30. Re3 {[%clk 0:02:21.2]}
30... Rf8 {[%clk 0:01:11.2]} 31. Kg3 {[%clk 0:02:20.8]} 31... e4 {[%clk
0:00:54.1]} 32. Nh4 {[%clk 0:02:10.7]} 32... Rd3 {[%clk 0:00:53.2]} 33. Re1
{[%clk 0:02:10.2]} 33... Rfd8 {[%clk 0:00:50.9]} 34. Nf5 {[%clk 0:02:09.2]}
34... Rxe3+ {[%clk 0:00:50.4]} 35. Nxe3 {[%clk 0:02:07.5]} 35... Rd4 {[%clk
0:00:47.8]} 36. Rb1 {[%clk 0:02:06.3]} 36... Ne5 {[%clk 0:00:45.2]} 37. Kf4
{[%clk 0:02:06.7]} 37... Nd3+ {[%clk 0:00:43.5]} 38. Kf5 {[%clk 0:02:07.2]}
38... Rxb4 {[%clk 0:00:43.1]} 39. Rf1 {[%clk 0:02:02.9]} 39... Rb5 {[%clk
0:00:42.8]} 40. Ke6 {[%clk 0:02:01.9]} 40... Rxc5 {[%clk 0:00:42.8]} 41. Kd6
{[%clk 0:02:02.2]} 41... Rc1 {[%clk 0:00:33.9]} 42. Rf7+ {[%clk 0:02:01.8]}
42... Kb6 {[%clk 0:00:34]} 43. Rxh7 {[%clk 0:01:57.9]} 43... a5 {[%clk
0:00:31.3]} 44. Rc7 {[%clk 0:01:55.8]} 44... a4 {[%clk 0:00:29.4]} 45. g5 {[%clk
0:01:50.3]} 45... a3 {[%clk 0:00:29.1]} 46. g6 {[%clk 0:01:50.9]} 46... a2
{[%clk 0:00:28.6]} 47. g7 {[%clk 0:01:51.6]} 47... a1=Q {[%clk 0:00:28.6]} 48.
g8=Q {[%clk 0:01:49.9]} 48... Qe5# {[%clk 0:00:28.5]} 0-1

[Event "*** Titled Tuesday Blitz"]
[Site "Chess.com"]
[Date "2020.11.24"]
[Round "5"]
[White "DenishevM"]
[Black "Teo2000"]
[Result "1-0"]
[WhiteElo "2599"]
[BlackElo "2426"]
[TimeControl "180+1"]
[EndTime "11:10:34 PST"]
[Termination "DenishevM won by resignation"]

1. e4 {[%clk 0:03:00.1]} 1... e5 {[%clk 0:02:58.4]} 2. Nf3 {[%clk 0:02:57.5]}
2... Nf6 {[%clk 0:02:58.9]} 3. Nxe5 {[%clk 0:02:55.1]} 3... Nc6 {[%clk
0:02:59.2]} 4. Nxc6 {[%clk 0:02:49.5]} 4... dxc6 {[%clk 0:03:00.1]} 5. e5 {[%clk
0:02:49.2]} 5... Ne4 {[%clk 0:02:54.8]} 6. Qe2 {[%clk 0:02:34.1]} 6... Bf5
{[%clk 0:02:44.3]} 7. Nc3 {[%clk 0:02:28.4]} 7... Nxc3 {[%clk 0:02:39.7]} 8.
dxc3 {[%clk 0:02:29.3]} 8... Bc5 {[%clk 0:02:38.1]} 9. Be3 {[%clk 0:02:27.5]}
9... Qe7 {[%clk 0:02:37.5]} 10. Bxc5 {[%clk 0:02:23.5]} 10... Qxc5 {[%clk
0:02:37.4]} 11. O-O-O {[%clk 0:02:23.8]} 11... O-O {[%clk 0:02:35.8]} 12. g4
{[%clk 0:02:21]} 12... Be6 {[%clk 0:02:33]} 13. Kb1 {[%clk 0:02:19]} 13... a5
{[%clk 0:02:33.3]} 14. f4 {[%clk 0:02:13.5]} 14... a4 {[%clk 0:02:32.9]} 15. a3
{[%clk 0:02:11]} 15... b5 {[%clk 0:02:33.1]} 16. Bg2 {[%clk 0:02:10.3]} 16...
Qb6 {[%clk 0:02:21.4]} 17. f5 {[%clk 0:01:58.4]} 17... Bc4 {[%clk 0:02:19.4]}
18. Qd2 {[%clk 0:01:45.2]} 18... Rae8 {[%clk 0:02:13]} 19. Rhe1 {[%clk
0:01:44.1]} 19... c5 {[%clk 0:02:12.6]} 20. Qf4 {[%clk 0:01:39.1]} 20... Rb8
{[%clk 0:01:57.1]} 21. g5 {[%clk 0:01:33.5]} 21... b4 {[%clk 0:01:54.3]} 22.
Qxc4 {[%clk 0:01:30.1]} 22... bxa3 {[%clk 0:01:54.9]} 23. b3 {[%clk 0:01:25.5]}
23... axb3 {[%clk 0:01:52]} 24. cxb3 {[%clk 0:01:26.4]} 24... Qxb3+ {[%clk
0:01:25.8]} 25. Qxb3 {[%clk 0:01:27.3]} 25... Rxb3+ {[%clk 0:01:26.4]} 26. Ka1
{[%clk 0:01:28]} 26... Rb2 {[%clk 0:01:27.1]} 27. Bd5 {[%clk 0:01:24.2]} 27...
Rfb8 {[%clk 0:01:25.7]} 28. g6 {[%clk 0:01:19.5]} 28... hxg6 {[%clk 0:01:24.6]}
29. fxg6 {[%clk 0:01:20.4]} 29... Rxh2 {[%clk 0:01:24.8]} 30. gxf7+ {[%clk
0:01:17.8]} 30... Kf8 {[%clk 0:01:24]} 31. Rh1 {[%clk 0:01:12.5]} 31... Rxh1
{[%clk 0:01:14.6]} 32. Rxh1 {[%clk 0:01:13.4]} 32... Ke7 {[%clk 0:01:15.5]} 33.
Bc4 {[%clk 0:01:02.2]} 33... Rd8 {[%clk 0:01:07.4]} 34. Rg1 {[%clk 0:00:58.3]}
34... Kf8 {[%clk 0:00:59.1]} 35. e6 {[%clk 0:00:57.2]} 35... Rd2 {[%clk
0:00:58.1]} 36. Rh1 {[%clk 0:00:53.8]} 36... Ke7 {[%clk 0:00:56.8]} 37. Rh8
{[%clk 0:00:52.9]} 1-0

[Event "*** Titled Tuesday Blitz"]
[Site "Chess.com"]
[Date "2020.11.24"]
[Round "5"]
[White "ChainsOfFantasia"]
[Black "LamaChampetre"]
[Result "1-0"]
[WhiteElo "2485"]
[BlackElo "2219"]
[TimeControl "180+1"]
[EndTime "11:10:46 PST"]
[Termination "ChainsOfFantasia won by resignation"]

1. d4 {[%clk 0:03:00.9]} 1... Nf6 {[%clk 0:02:59.3]} 2. Nf3 {[%clk 0:02:58.4]}
2... g6 {[%clk 0:02:59.2]} 3. c4 {[%clk 0:02:52.8]} 3... Bg7 {[%clk 0:02:57.3]}
4. Nc3 {[%clk 0:02:53.7]} 4... d5 {[%clk 0:02:56.7]} 5. cxd5 {[%clk 0:02:54.6]}
5... Nxd5 {[%clk 0:02:54.3]} 6. e4 {[%clk 0:02:55.5]} 6... Nxc3 {[%clk
0:02:53.3]} 7. bxc3 {[%clk 0:02:56.4]} 7... c5 {[%clk 0:02:53.9]} 8. Bb5+ {[%clk
0:02:56]} 8... Bd7 {[%clk 0:02:48.8]} 9. Bxd7+ {[%clk 0:02:54.1]} 9... Nxd7
{[%clk 0:02:48.8]} 10. Rb1 {[%clk 0:02:54.3]} 10... Qa5 {[%clk 0:02:27.7]} 11.
Rxb7 {[%clk 0:02:37.4]} 11... Qxc3+ {[%clk 0:02:00]} 12. Bd2 {[%clk 0:02:37.2]}
12... Qc4 {[%clk 0:01:59.7]} 13. Qe2 {[%clk 0:01:54.6]} 13... Qxe2+ {[%clk
0:01:49.9]} 14. Kxe2 {[%clk 0:01:55.5]} 14... cxd4 {[%clk 0:01:49.8]} 15. Rc1
{[%clk 0:01:55.8]} 15... Ne5 {[%clk 0:01:07.5]} 16. Nxd4 {[%clk 0:01:35.4]}
16... O-O {[%clk 0:01:03.4]} 17. Rxe7 {[%clk 0:01:33.2]} 17... Rfe8 {[%clk
0:00:53.5]} 18. Rxe8+ {[%clk 0:01:23.6]} 18... Rxe8 {[%clk 0:00:52.3]} 19. f3
{[%clk 0:01:21]} 19... Ng4 {[%clk 0:00:45.9]} 20. Nb5 {[%clk 0:01:15]} 20... Ne5
{[%clk 0:00:31.5]} 21. Nxa7 {[%clk 0:01:13.6]} 21... f5 {[%clk 0:00:28.2]} 22.
Rc8 {[%clk 0:01:13.3]} 22... Rxc8 {[%clk 0:00:26.3]} 23. Nxc8 {[%clk 0:01:14.2]}
23... fxe4 {[%clk 0:00:26.1]} 24. fxe4 {[%clk 0:01:15.1]} 24... Nc4 {[%clk
0:00:25.9]} 25. a4 {[%clk 0:01:13.6]} 25... Kf7 {[%clk 0:00:17.8]} 26. a5 {[%clk
0:01:13.7]} 26... Bd4 {[%clk 0:00:15.6]} 27. Kd3 {[%clk 0:01:10.7]} 27... Nxd2
{[%clk 0:00:12.4]} 28. Kxd2 {[%clk 0:01:09.5]} 28... Ke6 {[%clk 0:00:10.2]} 29.
a6 {[%clk 0:01:09]} 29... Kd7 {[%clk 0:00:06.9]} 30. a7 {[%clk 0:01:09.4]} 30...
Kxc8 {[%clk 0:00:03.4]} 31. a8=Q+ {[%clk 0:01:09.2]} 1-0